[Event "Susha Chess Rapid Women 2022"]
[Site "Shusha"]
[Date "2022.09.23"]
[Round "8.5"]
[White "Fataliyeva, Ulviyya"]
[Black "Mammadzada, Gunay"]
[Result "1/2-1/2"]
[ECO "A07"]
[WhiteElo "2408"]
[BlackElo "2473"]
[Annotator "TA"]
[PlyCount "120"]
[EventDate "2022.09.21"]
[EventType "tourn"]
[EventCountry "AZE"]
[SourceTitle "playchess.com"]
[Source "ChessBase"]
[SourceQuality "1"]
[TimeControl "900+10"]

{[%evp 14,120,17,0,8,-12,24,22,14,16,65,61,65,-36,4,0,0,0,31,25,101,89,93,94,98,99,101,96,131,126,135,134,137,126,137,137,134,132,252,250,245,230,257,212,310,264,274,256,252,221,232,228,227,208,270,263,222,200,200,170,167,141,141,85,141,141,141,35,35,8,12,8,43,40,41,47,51,0,0,0,371,351,320,0,0,-451,-352,-200,-91,-702,-458,-496,-391,-29972,-29973,-29974,-29975,-29974,-29974,-29974,-29970,-29969,-29971,-29971,-29972,-29975,-29976,-29973,-29974]} 1. Nf3 {[%emt 0:00:03]} d5 {[%emt 0:00:01]} 2. g3 {[%emt 0:00:01]} c6 {[%emt 0:00:02]} 3. Bg2 {[%emt 0:00:02]} Bg4 {[%emt 0:00:02]} 4. O-O {[%emt 0:00:05]} Nf6 {[%emt 0:00:05]} 5. h3 {[%emt 0:00:10]} Bh5 {[%emt 0:00:03]} 6. d4 {[%emt 0:00:02]} e6 {[%emt 0:00:02]} 7. Nbd2 {[%emt 0:00:17]} Nbd7 {[%emt 0:00:02]} 8. c4 {[%emt 0:00:02]} Be7 {[%emt 0:00:30] D11: Slav Defence: 3 Nf3 sidelines and 3...Nf6 4 e3 Bg4.} 9. cxd5 {[%emt 0:00:06]} exd5 {[%emt 0:00:03]} 10. Ne5 {[%emt 0:00:11]} Bg6 {[%emt 0:01:12] The position is equal.} 11. f4 {[%emt 0:01:15]} Be4 {[%emt 0:00:28]} (11... Qb6 $11 12. e3 Nxe5 13. dxe5 (13. fxe5 Nd7 $11) 13... Ne4 14. Nxe4 Bxe4) 12. Nxe4 $14 {[%emt 0:03:09]} Nxe4 {[%emt 0:01:13] [#]} 13. Qb3 $146 {[%emt 0:01:33]} ({Better is} 13. Bxe4 $14 dxe4 14. Qb3) ({Predecessor:} 13. Bxe4 dxe4 14. Qb3 Nxe5 15. dxe5 Qb6+ 16. Be3 Bc5 17. Bxc5 Qxc5+ 18. Kg2 O-O 19. Rac1 {½-½ (56) Svane,R (2613)-Zubov,A (2598) Chess.com INT 2021}) 13... Nd6 {[%emt 0:02:28][%cal Be4d6,Bd6b5,Bb5d4][%mdl 32] Pair of Knights!} 14. e4 $1 {[%emt 0:01:47]} dxe4 {[%emt 0:00:41]} 15. Bxe4 {[%emt 0:00:07]} O-O {[%emt 0:01:58]} 16. Bc2 {[%emt 0:00:15]} Nxe5 {[%emt 0:02:55]} (16... Nb6 $11 {keeps the balance.}) 17. dxe5 $16 (17. fxe5 Nb5 18. Qd3 Qxd4+ 19. Be3 Qxd3 20. Bxd3 Nc7 $15) 17... Nb5 {[#]} 18. Be3 $1 {[%emt 0:00:40] Active counter play!} Nd4 {[%emt 0:01:26] [#]} 19. Bxh7+ $1 {[%emt 0:01:26]} Kxh7 {[%emt 0:00:01]} 20. Qd3+ {[%emt 0:00:02]} g6 {[%emt 0:00:18][%cal Od4f3]} 21. Qxd4 {[%emt 0:00:16]} (21. Bxd4 $2 c5 22. Rad1 cxd4 $19) 21... Qxd4 {[%emt 0:00:02]} 22. Bxd4 Rfd8 23. Be3 {[%emt 0:00:40]} Rd3 {[%emt 0:00:01]} 24. Kf2 {[%emt 0:00:05]} Rad8 {[%emt 0:00:01]} 25. Ke2 {[%emt 0:00:17]} c5 {[%emt 0:00:52]} (25... f6 $16 26. exf6 (26. Bxa7 Rxg3 27. Rad1 Rg2+ 28. Kf3 Rgd2 $16) 26... Bxf6) 26. Rad1 $18 {[%emt 0:01:21]} c4 {[%emt 0:00:05]} 27. Rxd3 {[%emt 0:01:21]} (27. Bxa7 Ra8) 27... cxd3+ {[%emt 0:00:02][%mdl 4096] Endgame KRB-KRB} 28. Kf3 {[%emt 0:00:19]} f5 {[%emt 0:00:05]} (28... b6 $142 29. Rd1 f6) 29. Rd1 {[%emt 0:00:16]} b6 {[%emt 0:00:11]} 30. a3 {[%emt 0:00:27]} Kg7 {[%emt 0:00:03]} 31. b4 {[%emt 0:00:49]} Kf7 {[%emt 0:00:52]} 32. Bf2 {[%emt 0:00:01]} Ke6 {[%emt 0:01:12]} 33. Ke3 {[%emt 0:00:06]} Rh8 {[%emt 0:00:20]} 34. h4 {[%emt 0:01:06]} ({Less strong is} 34. Kxd3 Rxh3 35. Kc4 g5 $16) 34... a5 {[%emt 0:01:15]} 35. bxa5 {[%emt 0:00:45]} ({But not} 35. Kxd3 axb4 36. axb4 (36. Bxb6 bxa3 37. Ra1 Ra8 $11) 36... Rd8+ 37. Ke2 Rxd1 38. Kxd1 b5) 35... bxa5 {[%emt 0:01:08]} 36. Rxd3 {[%emt 0:00:02]} a4 {[%emt 0:00:03]} 37. Kd2 {[%emt 0:01:24]} Rb8 {[%emt 0:00:11]} 38. Bd4 {[%emt 0:00:07] Prevents Rb2+.} (38. Be1 $142) 38... Rb1 {[%emt 0:00:23]} ({Black should play} 38... Rb7) 39. Kc2 $16 {[%emt 0:00:41]} Re1 {[%emt 0:00:02]} 40. Bb2 {[%emt 0:00:17]} (40. Bc3 $16 Re2+ 41. Kd1) 40... Rg1 $14 {[%emt 0:00:09]} 41. Kc3 {[%emt 0:00:07] Threatens to win with Kc4.} Rg2 {[%emt 0:00:05]} 42. Bc1 {[%emt 0:00:10] Strongly threatening Kd4.} Rg1 {[%emt 0:00:28]} 43. Kc2 Rg2+ {[%emt 0:00:04]} 44. Bd2 {[%emt 0:00:22]} Bc5 {[%emt 0:00:41]} 45. Rc3 {[%emt 0:00:01]} (45. Kc1 $14) 45... Kd5 $11 {[%emt 0:00:31]} 46. e6 {[%emt 0:00:02] And now Kd1 would win.} Be7 $2 {[%emt 0:00:05][%mdl 8192]} (46... Re2 $1 $11) 47. Re3 $18 {[%emt 0:00:03]} Kc4 {[%emt 0:00:07]} 48. Rd3 $2 {[%emt 0:00:06]} (48. Kd1 $18) 48... Re2 $11 {[%emt 0:00:03]} 49. Re3 $2 {[%emt 0:00:17][%mdl 8192]} (49. Rc3+ $11 {and White is okay.} Kd5 50. Kd3) 49... Rxe3 $19 {[%emt 0:00:06][%mdl 64] Remove Defender} 50. Bxe3 {[%emt 0:00:01] [#]} Bxa3 {[%emt 0:00:04] KB-KB} (50... Kd5 $1 $19 {has better winning chances.} 51. Bc1 Kxe6) 51. Bc1 {[%emt 0:00:39][%mdl 8192] This move loses the game for White.} (51. g4 $17 Kd5 52. gxf5 gxf5 53. Bg1 (53. h5 Kxe6 54. Bg1 Kf7 $19)) 51... Be7 {[%emt 0:00:02] White must now prevent ...Kd5.} 52. Bb2 {[%emt 0:00:07]} Kd5 {[%emt 0:00:05]} 53. Kd3 $2 {[%emt 0:00:01]} (53. g4 $19 fxg4 54. f5 gxf5 55. h5) 53... Kxe6 {[%emt 0:00:23] Black mates.} 54. Kc4 {[%emt 0:00:11]} a3 {[%emt 0:00:11]} 55. Ba1 {[%emt 0:00:26]} a2 {[%emt 0:00:04]} 56. Kb3 {[%emt 0:00:01]} Bc5 {[%emt 0:00:06]} 57. Kxa2 {[%emt 0:00:07]} Bf2 {[%emt 0:00:00]} 58. Kb3 {[%emt 0:00:16]} Bxg3 {[%emt 0:00:02]} 59. Be5 {[%emt 0:00:03]} Kd5 {[%emt 0:00:02]} 60. Kc3 {[%emt 0:00:08]} Ke4 {[%emt 0:00:01][%mdl 32768] Weighted Error Value: White=0.47/Black=0.40. An unexpected result.} 1/2-1/2

[Event "Susha Chess Rapid Women 2022"]
[Site "Shusha"]
[Date "2022.09.23"]
[Round "9.1"]
[White "Zawadzka, Jolanta"]
[Black "Beydullayeva, Govhar"]
[Result "1/2-1/2"]
[ECO "B51"]
[WhiteElo "2401"]
[BlackElo "2346"]
[Annotator "TA"]
[PlyCount "98"]
[EventDate "2022.09.21"]
[EventType "tourn"]
[EventCountry "AZE"]
[SourceTitle "playchess.com"]
[Source "ChessBase"]
[SourceQuality "1"]
[TimeControl "900+10"]

{[%evp 10,98,8,0,0,0,0,0,0,0,0,-7,6,-21,41,43,46,45,39,43,61,36,59,56,79,68,72,59,73,60,77,65,103,96,100,106,101,114,103,40,48,24,58,54,59,42,43,41,42,45,41,39,153,145,191,92,92,89,85,85,102,102,116,109,117,120,133,118,120,118,269,265,275,261,265,211,211,211,211,211,218,198,244,248,330,89,73,10,10,10,10]} 1. e4 {[%emt 0:00:02]} c5 {[%emt 0:00:01]} 2. Nf3 {[%emt 0:00:01]} d6 {[%emt 0:00:01]} 3. Bb5+ {[%emt 0:00:02]} Nd7 {[%emt 0:00:00]} 4. O-O {[%emt 0:00:04]} a6 {[%emt 0:00:01]} 5. Bxd7+ {[%emt 0:00:02]} Bxd7 {[%emt 0:00:02]} 6. c3 {[%emt 0:00:04]} Nf6 {[%emt 0:00:19] B51: Sicilian: Moscow Variation (3 Bb5+) without 3...Bd7.} 7. Re1 {[%emt 0:00:01]} e6 {[%emt 0:00:15]} 8. d4 {[%emt 0:00:03]} Be7 {[%emt 0:00:02]} 9. e5 {[%emt 0:00:15]} dxe5 {[%emt 0:00:14]} 10. dxe5 {[%emt 0:00:03]} Nd5 {[%emt 0:00:01]} 11. c4 {[%emt 0:00:16]} Nc7 {[%emt 0:00:50]} (11... Nb4 $11) 12. Nc3 $14 {[%emt 0:00:15]} Bc6 {[%emt 0:00:33]} 13. Qe2 {[%emt 0:00:13]} b5 {[%emt 0:00:14]} 14. b3 {[%emt 0:00:56]} O-O {[%emt 0:00:41]} 15. Ne4 {[%emt 0:01:08] [#]} Ne8 $146 {[%emt 0:03:45]} ({Predecessor:} 15... Kh8 16. Bf4 a5 17. Rad1 Qb8 18. Bg5 Qe8 19. Nd6 Bxd6 20. exd6 Na6 21. Be7 Rg8 22. Ne5 bxc4 23. Qh5 g6 24. Bf6+ Rg7 25. Qh6 Qg8 26. Nxc6 Qe8 27. Qxg7# {1-0 (27) Martinez Alcantara,J (2598)-Savchenko,B (2535) Chess.com INT 2022}) 16. Bf4 {[%emt 0:01:18]} Qc8 {[%emt 0:02:26]} 17. Rad1 {[%emt 0:03:49]} Qb7 {[%emt 0:00:08]} 18. Nfd2 {[%emt 0:00:02] White is much more active.} a5 {[%emt 0:02:11]} 19. cxb5 {[%emt 0:00:36]} Bxb5 {[%emt 0:00:09]} 20. Qg4 {[%emt 0:00:02]} Kh8 {[%emt 0:00:50]} 21. Re3 {[%emt 0:00:25]} f5 {[%emt 0:00:37]} 22. exf6 $1 {[%emt 0:00:05]} Nxf6 {[%emt 0:00:01]} 23. Nxf6 {[%emt 0:00:21]} ({And not} 23. Qxe6 Nd5 24. Bg5 Bxg5 25. Nxg5 Nxe3 26. Qxe3 Qd5 $17) 23... Rxf6 {[%emt 0:00:37]} 24. Rh3 $40 {[%emt 0:00:38][%mdl 128] White attacks. Really sharp!} ({But not} 24. Rxe6 $2 Qc8 25. Rde1 Bd7 26. Rxf6 Bxg4 $19) (24. Bg5 $16 Rg6 25. h4) 24... Be8 {[%emt 0:01:59]} 25. Rg3 {[%emt 0:01:20][%csl Gg3][%cal Rg4g7]} Rg6 {[%emt 0:00:19]} 26. Qe2 {[%emt 0:00:06]} Rd8 {[%emt 0:00:41]} 27. Nc4 {[%emt 0:00:16]} Rxd1+ {[%emt 0:00:30]} 28. Qxd1 {[%emt 0:00:02]} Rxg3 {[%emt 0:00:01]} 29. hxg3 {[%emt 0:00:11]} a4 {[%emt 0:00:01]} 30. bxa4 {[%emt 0:00:37]} Qd5 {[%emt 0:01:54]} (30... Qb4 $14 31. Bd6 (31. Qe2 Qxa4 32. Bd6 Bf6 $14) 31... Bf6) 31. Qb3 $16 {[%emt 0:00:49]} Bc6 {[%emt 0:00:36]} (31... h6 $16 32. Ne3 Qxb3 33. axb3 Kg8) 32. Qb8+ {[%emt 0:00:41]} (32. f3 $1 $18) 32... Qd8 {[%emt 0:00:00]} 33. a5 {[%emt 0:01:21] Hoping for a6.} Qxb8 {[%emt 0:00:13]} 34. Bxb8 {[%emt 0:00:02][%mdl 4096] Endgame Threatens to win with a6. KBB-KBN} Bb5 {[%emt 0:00:05]} 35. Nd6 {[%emt 0:01:32]} Ba6 {[%emt 0:00:17]} 36. Ne4 {[%emt 0:00:06]} c4 {[%emt 0:00:08]} 37. Be5 $1 {[%emt 0:00:06]} Bb7 {[%emt 0:00:04]} 38. Nd2 {[%emt 0:01:03]} Bd5 {[%emt 0:00:29]} 39. Bc3 {[%emt 0:00:17] Inhibits Bb4.} Bf6 $2 {[%emt 0:00:12]} (39... Kg8 $16) 40. Bxf6 $18 {[%emt 0:00:17]} gxf6 {[%emt 0:00:01] KB-KN} 41. Nb1 {[%emt 0:00:02]} Kg7 {[%emt 0:00:00]} 42. Nc3 {[%emt 0:00:01]} Bb7 {[%emt 0:00:07]} 43. Kf1 {[%emt 0:00:04]} Kf7 {[%emt 0:00:02]} 44. Ke2 {[%emt 0:00:21]} Ke7 {[%emt 0:00:22]} 45. f3 {[%emt 0:00:07]} Kd6 {[%emt 0:00:05]} (45... f5 $142 46. Nb5 Kd7) 46. Ke3 {[%emt 0:00:01]} Kc5 {[%emt 0:00:08] [#]} 47. a3 $2 {[%emt 0:00:21]} (47. Ne4+ $1 $18 {and the rest is easy.} Kb4 48. Nxf6) 47... f5 $16 {[%emt 0:00:09] [#]} 48. Kd2 {[%emt 0:00:39]} (48. Na2 $1 $16) 48... e5 $11 {[%emt 0:00:06]} 49. Ke3 {[%emt 0:00:19]} h5 {[%emt 0:00:15] Weighted Error Value: White=0.22 (precise) /Black=0.19 (very precise)} 1/2-1/2

[Event "Susha Chess Rapid Women 2022"]
[Site "Shusha"]
[Date "2022.09.23"]
[Round "9.3"]
[White "Dzagnidze, Nana"]
[Black "Balajayeva, Khanim"]
[Result "0-1"]
[ECO "A29"]
[WhiteElo "2526"]
[BlackElo "2379"]
[Annotator "TA"]
[PlyCount "72"]
[EventDate "2022.09.21"]
[EventType "tourn"]
[EventCountry "AZE"]
[SourceTitle "playchess.com"]
[Source "ChessBase"]
[SourceQuality "1"]
[TimeControl "900+10"]

{[%evp 18,72,0,0,0,0,0,0,0,-23,25,-80,-75,-81,0,0,0,-23,-38,-216,-204,-214,-79,-135,-147,-139,-131,-179,-187,-185,-129,-212,-177,-235,-254,-305,-288,-346,-356,-362,-362,-357,-352,-403,-320,-300,-255,-927,-914,-885,-883,-855,-773,-1076,-1076,-1946,-1781]} 1. c4 {[%emt 0:00:03]} e5 {[%emt 0:00:01]} 2. Nc3 {[%emt 0:00:02]} Nf6 {[%emt 0:00:01]} 3. Nf3 {[%emt 0:00:02]} Nc6 {[%emt 0:00:01]} 4. g3 {[%emt 0:00:41]} Nd4 {[%emt 0:00:40]} 5. Bg2 {[%emt 0:00:03]} Nxf3+ {[%emt 0:00:02]} 6. Bxf3 {[%emt 0:00:01]} Bb4 {[%emt 0:00:01]} 7. O-O {[%emt 0:00:42]} O-O {[%emt 0:00:03]} 8. d4 {[%emt 0:00:10]} Bxc3 {[%emt 0:00:06]} 9. bxc3 {[%emt 0:00:03]} e4 {[%emt 0:00:09]} 10. Bg2 {[%emt 0:00:02]} h6 {[%emt 0:00:01] Inhibits Bg5. A29: English Opening: Four Knights Variation with 4 g3.} 11. f3 {[%emt 0:00:55]} exf3 {[%emt 0:02:09] [#]} 12. Rxf3 $146 {[%emt 0:00:14]} ({Predecessor:} 12. Bxf3 d6 13. Qd3 Re8 14. Rb1 Bh3 15. Re1 b6 16. Bf4 Rc8 17. e4 Nh7 18. e5 {1-0 (34) Novikov,S (2557)-Efimenko,Z (2657) Moscow 2010}) 12... d6 {[%emt 0:00:11] The position is equal.} 13. Qd3 {[%emt 0:00:30]} Re8 {[%emt 0:00:06] [#]} (13... Bg4 {should be considered.}) 14. Bd2 {[%emt 0:04:46]} (14. Bxh6 $1 $11 Bg4 15. Bg5 Bxf3 16. Bxf3) 14... Bg4 $17 {[%emt 0:01:18]} 15. Rf2 {[%emt 0:00:06] [#]} c6 {[%emt 0:00:09]} (15... Bh5 $1 $17 16. e4 (16. Bxb7 Bg6 $17) 16... Bg6) 16. Raf1 $11 {[%emt 0:00:09][%cal Od2h6]} Bh5 {[%emt 0:00:38] White must now prevent ...Bg6.} 17. Bxh6 {[%emt 0:03:22] aiming for Bg5.} Bg6 $1 {[%emt 0:03:10]} 18. Qf3 {[%emt 0:03:38]} (18. Qd2 $15 Ng4 19. Bg5) 18... Ne4 $19 {[%emt 0:00:13]} 19. Bf4 {[%emt 0:01:04]} Qe7 {[%emt 0:00:51]} ({Weaker is} 19... Nxf2 20. Rxf2 Qd7 21. Bf1 $17) (19... Qa5 $19 {and Black stays clearly on top.} 20. e3 Qxc3) 20. h4 {[%emt 0:00:04]} (20. Qg4 $142) 20... Nxf2 $17 {[%emt 0:00:02] Black is more active.} 21. Rxf2 {[%emt 0:00:02]} Be4 $36 {[%emt 0:00:31][%mdl 2048] Black is really pushing.} 22. Qg4 {[%emt 0:00:02]} (22. Qxe4 $17 Qxe4 23. Bxe4 Rxe4 24. e3 (24. Bxd6 $2 Re3 $19)) 22... Bxg2 $19 {[%emt 0:00:15]} 23. Kxg2 {[%emt 0:00:03]} Qe6 {[%emt 0:00:05]} (23... Qe4+ $19 24. Qf3 Qe6) 24. Qf3 {[%emt 0:01:14]} (24. Qxe6 $17 Rxe6 25. e3) 24... Rad8 {[%emt 0:00:21]} 25. Kh2 {[%emt 0:00:14]} (25. Qd3 $142) 25... Qxc4 {[%emt 0:00:55]} 26. e4 {[%emt 0:00:45]} c5 {[%emt 0:00:54]} 27. h5 {[%emt 0:00:25]} Qe6 {[%emt 0:00:29] Prevents h6.} ({Don't go for} 27... cxd4 $2 28. cxd4 Qxd4 29. Be3 Qxe4 30. Qxf7+ Kh7 31. Bxa7) 28. Re2 {[%emt 0:00:05]} cxd4 {[%emt 0:00:41]} 29. cxd4 {[%emt 0:00:02]} Rc8 {[%emt 0:00:01][%cal Od6d5]} 30. Bg5 {[%emt 0:00:26]} f5 {[%emt 0:01:11][%cal Rf5e4]} 31. e5 {[%emt 0:00:03]} dxe5 {[%emt 0:00:01]} 32. Rxe5 {[%emt 0:00:04]} (32. dxe5 b6 33. Bf4) 32... Qxa2+ {[%emt 0:00:01] Black is clearly winning.} 33. Kh3 {[%emt 0:00:01]} Rxe5 {[%emt 0:00:19]} 34. dxe5 {[%emt 0:00:00]} Qe6 {[%emt 0:00:02] And now ...b5 would win.} 35. Bf4 {[%emt 0:00:01]} b5 {[%emt 0:00:11]} 36. Qb7 {[%emt 0:00:02]} Qc6 {[%emt 0:00:31] Weighted Error Value: White=0.89/Black=0.21 (precise)} 0-1

[Event "Susha Chess Rapid Women 2022"]
[Site "Shusha"]
[Date "2022.09.23"]
[Round "9.4"]
[White "Mammadova, Gulnar"]
[Black "Efroimski, Marsel"]
[Result "1-0"]
[ECO "B30"]
[WhiteElo "2382"]
[BlackElo "2462"]
[Annotator "TA"]
[PlyCount "71"]
[EventDate "2022.09.21"]
[EventType "tourn"]
[EventCountry "AZE"]
[SourceTitle "playchess.com"]
[Source "ChessBase"]
[SourceQuality "1"]
[TimeControl "900+10"]

{[%evp 9,70,47,36,38,41,39,71,72,78,87,90,72,115,113,203,180,191,195,192,193,202,162,274,252,265,267,259,264,343,340,377,370,377,337,470,467,450,463,632,636,668,654,652,666,719,702,967,783,796,806,1012,831,854,804,908,800,1093,1093,1336,1331,29983,29984,29999]} 1. e4 {[%emt 0:00:02]} c5 {[%emt 0:00:01]} 2. Nf3 {[%emt 0:00:01]} Nc6 {[%emt 0:00:00]} 3. Bb5 {[%emt 0:00:02][%cal Bf1b5,Bb5a4,Ba4b3][%mdl 32]} e5 {[%emt 0:00:01]} 4. O-O {[%emt 0:00:10]} Bd6 {[%emt 0:00:01]} 5. c3 {[%emt 0:00:02]} a6 {[%emt 0:00:01]} 6. Ba4 {[%emt 0:00:01] B30: Sicilian: 2...Nc6 3 Bb5, lines without ...g6.} b5 {[%emt 0:00:01]} 7. Bb3 {[%emt 0:00:01]} Nf6 {[%emt 0:00:16]} 8. d4 {[%emt 0:00:28] [#] White is better.} c4 $146 {[%emt 0:02:21]} (8... Nxe4 $2 9. dxc5 (9. Bd5 f5 $18) 9... Nxc5 10. Qxd6 $18) ({Predecessor:} 8... cxd4 9. cxd4 Qc7 10. dxe5 Nxe5 11. Nxe5 Bxe5 12. f4 Qb6+ 13. Kh1 Bd4 14. Nc3 Bb7 {1-0 (32) Matviishen,V (2476)-Filgueiras,N (2188) Porto Carras 2018}) 9. Bc2 {[%emt 0:00:14]} Qc7 {[%emt 0:00:26]} 10. Bg5 {[%emt 0:00:46]} Bb7 {[%emt 0:00:29]} 11. a4 {[%emt 0:00:59]} Ng8 {[%emt 0:01:07]} (11... Be7 $16) 12. Na3 $18 {[%emt 0:01:56]} Bxa3 {[%emt 0:01:18]} 13. Rxa3 {[%emt 0:00:01]} f6 {[%emt 0:00:01]} 14. Be3 {[%emt 0:00:09]} d6 {[%emt 0:00:02]} 15. dxe5 {[%emt 0:01:13]} fxe5 {[%emt 0:00:02]} (15... dxe5 {was worth a try.} 16. axb5 axb5 17. Rxa8+ Bxa8) 16. axb5 {[%emt 0:00:34]} axb5 {[%emt 0:00:01]} 17. Rxa8+ {[%emt 0:00:02]} Bxa8 {[%emt 0:00:01]} 18. Qd5 {[%emt 0:00:03]} Nf6 {[%emt 0:01:30]} 19. Qxb5 {[%emt 0:00:10]} O-O {[%emt 0:00:26]} 20. Qxc4+ {[%emt 0:00:02]} Kh8 {[%emt 0:00:01]} 21. b4 {[%emt 0:00:28][%cal Bb2b4,Bb4b5][%mdl 32] b5 is the strong threat.} Qd8 {[%emt 0:02:51]} 22. b5 {[%emt 0:00:45]} Na5 {[%emt 0:00:41]} 23. Qb4 {[%emt 0:00:18]} Ng4 {[%emt 0:00:15]} 24. Bg5 {[%emt 0:01:02][%cal Be3g5,Bg5h4,Bh4g3][%mdl 32]} Nf6 {[%emt 0:02:03]} 25. Rd1 {[%emt 0:00:27]} Nb7 {[%emt 0:00:07]} 26. Nxe5 {[%emt 0:00:43]} Qc8 {[%emt 0:02:20]} 27. Nc6 {[%emt 0:00:30]} Ng4 {[%emt 0:01:31]} 28. Bh4 {[%emt 0:00:42]} Qe6 {[%emt 0:00:26]} 29. h3 {[%emt 0:00:39]} Nh6 {[%emt 0:01:24]} 30. Bg3 {[%emt 0:00:10]} Qf7 {[%emt 0:00:14]} 31. Kh2 {[%emt 0:00:43]} Re8 {[%emt 0:00:08]} 32. Qd4 {[%emt 0:01:19]} Ng8 {[%emt 0:00:09]} 33. e5 {[%emt 0:00:23]} dxe5 {[%emt 0:00:05]} 34. Nxe5 {[%emt 0:00:02][%cal Re5f7] [#]} Qe7 {[%emt 0:00:14]} 35. Qh4 {[%emt 0:00:23]} Qxh4 {[%emt 0:00:05]} 36. Nf7# {[%emt 0:00:02] Black got outplayed after the opening.  Weighted Error Value: White=0.07 (flawless) /Black=0.40} ({Not} 36. Bxh4 Rxe5 37. c4 Re2 $18) 1-0

[Event "Susha Chess Rapid Women 2022"]
[Site "Shusha"]
[Date "2022.09.23"]
[Round "9.5"]
[White "Mammadzada, Gunay"]
[Black "Arabidze, Meri"]
[Result "1/2-1/2"]
[ECO "B47"]
[WhiteElo "2473"]
[BlackElo "2422"]
[Annotator "TA"]
[PlyCount "88"]
[EventDate "2022.09.21"]
[EventType "tourn"]
[EventCountry "AZE"]
[SourceTitle "playchess.com"]
[Source "ChessBase"]
[SourceQuality "1"]
[TimeControl "900+10"]

{[%evp 11,88,6,27,34,31,29,39,24,34,35,37,33,21,8,25,15,27,9,12,9,33,32,35,43,50,65,61,41,70,56,81,81,82,79,197,190,174,164,139,38,38,38,38,38,38,38,40,45,50,12,12,12,12,12,12,0,0,0,0,0,0,0,0,0,0,0,0,0,0,0,0,0,0,0,0,0,0,0,0]} 1. e4 {[%emt 0:00:03]} c5 {[%emt 0:00:01]} 2. Nf3 {[%emt 0:00:01][%cal Bg1f3,Bf3d4,Bd4b5][%mdl 32]} e6 {[%emt 0:00:00]} 3. d4 {[%emt 0:00:01]} cxd4 {[%emt 0:00:01]} 4. Nxd4 {[%emt 0:00:01]} Nc6 {[%emt 0:00:01]} 5. Nc3 {[%emt 0:00:03]} Qc7 {[%emt 0:00:01]} 6. Be2 {[%emt 0:00:21]} Nf6 {[%emt 0:00:05]} 7. Ndb5 $1 {[%emt 0:00:12][%mdl 4] now scores much better than the old 7.0-0. B47: Sicilian: Taimanov: 5 Nc3 Qc7 6 f4, 6 g3 and 6 Be2.} Qb8 {[%emt 0:00:18]} 8. f4 {[%emt 0:00:03]} a6 {[%emt 0:00:12]} 9. e5 {[%emt 0:00:06] White is slightly better.} axb5 {[%emt 0:00:06]} 10. exf6 {[%emt 0:00:01]} b4 $1 {[%emt 0:00:09]} 11. fxg7 {[%emt 0:00:38]} Bxg7 {[%emt 0:00:02]} 12. Nb5 {[%emt 0:00:20]} O-O {[%emt 0:00:02]} 13. O-O {[%emt 0:00:55]} d5 {[%emt 0:00:07]} 14. Bd3 {[%emt 0:02:07]} f5 {[%emt 0:01:24] [#]} 15. c3 $146 {[%emt 0:03:41]} ({Predecessor:} 15. Kh1 Bd7 16. a4 Qd8 17. c3 bxc3 18. bxc3 d4 19. Ba3 dxc3 20. Bxf8 Qxf8 21. Bxf5 Qxf5 22. Qxd7 {1-0 (35) Niemann,H (2687)-Pichot,A (2641) Chess.com INT 2022}) 15... Bd7 {[%emt 0:00:49]} 16. Be3 {[%emt 0:00:12]} b6 {[%emt 0:00:50]} 17. Qd2 {[%emt 0:00:48]} bxc3 {[%emt 0:02:51]} 18. bxc3 {[%emt 0:00:01]} Kh8 {[%emt 0:01:20]} 19. h3 {[%emt 0:01:35]} Qd8 {[%emt 0:02:59]} 20. Rab1 {[%emt 0:01:31]} e5 {[%emt 0:01:41]} 21. fxe5 {[%emt 0:00:52]} Nxe5 {[%emt 0:00:01]} 22. Be2 {[%emt 0:00:01]} Nc4 {[%emt 0:00:58]} (22... Ra4 $16) 23. Bxc4 $18 {[%emt 0:00:05]} dxc4 {[%emt 0:00:01]} 24. Nd6 {[%emt 0:01:35]} b5 {[%emt 0:00:39]} 25. Bd4 {[%emt 0:01:08] White is much more active.} ({Reject} 25. Nxb5 $6 Bxb5 26. Rxb5 Qxd2 27. Bxd2 Rxa2 $11) (25. a4 $16) 25... Bxd4+ $14 {[%emt 0:00:19]} 26. Qxd4+ {[%emt 0:00:01]} Qf6 {[%emt 0:00:01]} 27. Nxb5 {[%emt 0:00:49]} Bxb5 {[%emt 0:02:54]} 28. Qxf6+ {[%emt 0:00:01]} Rxf6 {[%emt 0:00:00]} 29. Rxb5 {[%emt 0:00:02]} Rxa2 {[%emt 0:00:51]} 30. Rfxf5 {[%emt 0:00:23]} Rxf5 {[%emt 0:01:07] The position is equal.} 31. Rxf5 {[%emt 0:00:02][%mdl 4096] [#] Endgame aiming for Rf4. KR-KR} Rc2 $1 {[%emt 0:00:00]} 32. Rf3 {[%emt 0:00:02]} Kg7 {[%emt 0:00:01]} 33. g4 {[%emt 0:02:11]} Kg6 {[%emt 0:00:22]} 34. Kf1 {[%emt 0:00:27]} Kg5 {[%emt 0:00:18]} 35. Ke1 {[%emt 0:00:02]} Kh4 {[%emt 0:00:13]} 36. Kd1 {[%emt 0:00:27]} Rh2 {[%emt 0:00:01]} 37. Rf7 {[%emt 0:00:20]} h6 {[%emt 0:00:19]} 38. Rf4 {[%emt 0:00:06]} Rxh3 {[%emt 0:00:10]} 39. Rxc4 {[%emt 0:00:01]} Rg3 {[%emt 0:00:06]} 40. Ke2 {[%emt 0:00:23]} Rxg4 {[%emt 0:00:05]} 41. Rxg4+ {[%emt 0:00:09]} Kxg4 42. Kf2 {[%emt 0:00:03]} Kf4 {[%emt 0:00:02]} 43. c4 {[%emt 0:00:02]} Ke4 {[%emt 0:00:02]} 44. Kg3 Ke5 {Weighted Error Value: White=0.08 (flawless) /Black=0.09 (flawless)} 1/2-1/2